[Event "MCR rapid mládeže 2023 U16"]
[Site "Harachov, Czech Republic"]
[Date "2023.09.09"]
[Round "6.22"]
[White "Zrust, Lukas"]
[Black "Hokr, Matyas"]
[Result "1-0"]
[TimeControl "20min+5s/move"]
[WhiteElo "1519"]
[BlackElo "1226"]

1. d4 {[%clk 00:20:08]} {[%emt 00:00:02]} Nf6 {[%clk 00:20:07]} {[%emt
00:00:03]} 2. c4 {[%clk 00:20:06]} {[%emt 00:00:07]} e6 {[%clk 00:20:10]}
{[%emt 00:00:02]} 3. g3 {[%clk 00:20:09]} {[%emt 00:00:02]} d5 {[%clk
00:20:12]} {[%emt 00:00:03]} 4. Bg2 {[%clk 00:20:12]} {[%emt 00:00:01]} c6
{[%clk 00:20:16]} {[%emt 00:00:02]} 5. Nf3 {[%clk 00:20:12]} {[%emt 00:00:05]}
Bb4+ {[%clk 00:20:18]} {[%emt 00:00:02]} 6. Bd2 {[%clk 00:19:51]} {[%emt
00:00:26]} Qb6 {[%clk 00:19:39]} {[%emt 00:00:44]} 7. cxd5 {[%clk 00:18:20]}
{[%emt 00:01:37]} cxd5 {[%clk 00:19:27]} {[%emt 00:00:17]} 8. Nc3 {[%clk
00:17:37]} {[%emt 00:00:47]} Nc6 {[%clk 00:19:23]} {[%emt 00:00:10]} 9. e3
{[%clk 00:17:28]} {[%emt 00:00:13]} Qa6 {[%clk 00:18:55]} {[%emt 00:00:33]} 10.
a3 {[%clk 00:16:38]} {[%emt 00:00:56]} Bxc3 {[%clk 00:18:53]} {[%emt 00:00:07]}
11. Bxc3 {[%clk 00:16:40]} {[%emt 00:00:02]} Bd7 {[%clk 00:18:44]} {[%emt
00:00:15]} 12. Qe2 {[%clk 00:15:29]} {[%emt 00:01:16]} Qxe2+ {[%clk 00:18:38]}
{[%emt 00:00:11]} 13. Kxe2 {[%clk 00:15:33]} {[%emt 00:00:01]} Ne4 {[%clk
00:18:42]} {[%emt 00:00:01]} 14. Rhc1 {[%clk 00:14:53]} {[%emt 00:00:45]} Nxc3+
{[%clk 00:18:29]} {[%emt 00:00:18]} 15. Rxc3 {[%clk 00:14:55]} {[%emt
00:00:03]} O-O {[%clk 00:18:26]} {[%emt 00:00:08]} 16. Rac1 {[%clk 00:14:54]}
{[%emt 00:00:06]} Rfc8 {[%clk 00:18:23]} {[%emt 00:00:08]} 17. b4 {[%clk
00:14:52]} {[%emt 00:00:07]} a6 {[%clk 00:18:15]} {[%emt 00:00:12]} 18. Ne1
{[%clk 00:14:37]} {[%emt 00:00:20]} b6 {[%clk 00:17:38]} {[%emt 00:00:43]} 19.
Nd3 {[%clk 00:14:32]} {[%emt 00:00:09]} Ra7 {[%clk 00:16:56]} {[%emt 00:00:48]}
20. Ne5 {[%clk 00:14:16]} {[%emt 00:00:21]} Kf8 {[%clk 00:16:10]} {[%emt
00:00:51]} 21. Nxd7+ {[%clk 00:14:13]} {[%emt 00:00:08]} Rxd7 {[%clk 00:16:14]}
{[%emt 00:00:01]} 22. Rxc6 {[%clk 00:14:14]} {[%emt 00:00:04]} Rxc6 {[%clk
00:16:08]} {[%emt 00:00:11]} 23. Rxc6 {[%clk 00:14:17]} {[%emt 00:00:02]} b5
{[%clk 00:16:09]} {[%emt 00:00:04]} 24. Rxa6 {[%clk 00:14:12]} {[%emt
00:00:10]} Rc7 {[%clk 00:16:12]} {[%emt 00:00:01]} 25. Kd2 {[%clk 00:14:15]}
{[%emt 00:00:02]} Ke7 {[%clk 00:16:15]} {[%emt 00:00:02]} 26. Rb6 {[%clk
00:14:18]} {[%emt 00:00:03]} Ra7 {[%clk 00:16:15]} {[%emt 00:00:04]} 27. Rxb5
{[%clk 00:14:18]} {[%emt 00:00:05]} Rxa3 {[%clk 00:16:18]} {[%emt 00:00:03]} 28.
Rb7+ {[%clk 00:14:21]} {[%emt 00:00:02]} Kf6 {[%clk 00:16:20]} {[%emt
00:00:02]} 29. Ke2 {[%clk 00:14:22]} {[%emt 00:00:05]} Ra2+ {[%clk 00:16:21]}
{[%emt 00:00:04]} 30. Kf3 {[%clk 00:14:26]} g5 {[%clk 00:16:21]} {[%emt
00:00:04]} 31. g4 {[%clk 00:14:13]} {[%emt 00:00:19]} Rb2 {[%clk 00:16:09]}
{[%emt 00:00:17]} 32. b5 {[%clk 00:14:05]} {[%emt 00:00:12]} Kg6 {[%clk
00:16:11]} {[%emt 00:00:04]} 33. Rb8 {[%clk 00:13:57]} {[%emt 00:00:14]} f5
{[%clk 00:16:09]} {[%emt 00:00:06]} 34. Bh3 {[%clk 00:13:53]} {[%emt 00:00:08]}
fxg4+ {[%clk 00:16:09]} {[%emt 00:00:05]} 35. Bxg4 {[%clk 00:13:56]} {[%emt
00:00:02]} h5 {[%clk 00:16:11]} {[%emt 00:00:02]} 36. Bxe6 {[%clk 00:13:59]}
{[%emt 00:00:03]} g4+ {[%clk 00:16:15]} {[%emt 00:00:02]} 37. Kg3 {[%clk
00:13:59]} {[%emt 00:00:05]} Kf6 {[%clk 00:16:13]} {[%emt 00:00:06]} 38. Bxd5
{[%clk 00:14:01]} {[%emt 00:00:04]} h4+ {[%clk 00:16:15]} {[%emt 00:00:03]} 39.
Kxh4 {[%clk 00:13:55]} {[%emt 00:00:11]} g3 {[%clk 00:16:18]} {[%emt 00:00:02]}
40. Kxg3 {[%clk 00:13:53]} {[%emt 00:00:07]} Ke7 {[%clk 00:16:20]} {[%emt
00:00:03]} 41. b6 {[%clk 00:13:55]} {[%emt 00:00:04]} Kd7 {[%clk 00:16:22]} 42.
b7 {[%clk 00:13:58]} {[%emt 00:00:03]} Kc7 {[%clk 00:16:25]} {[%emt 00:00:02]}
43. Rc8+ {[%clk 00:14:01]} {[%emt 00:00:02]} Kd7 {[%clk 00:16:27]} {[%emt
00:00:03]} 44. b8=Q {[%clk 00:13:57]} {[%emt 00:00:10]} Rb4 {[%clk 00:15:54]}
{[%emt 00:00:38]} 45. Qc7# {[%clk 00:13:51]} {[%emt 00:00:10]} 1-0

[Event "MCR rapid mládeže 2023 U16"]
[Site "Harachov, Czech Republic"]
[Date "2023.09.09"]
[Round "6.23"]
[White "Vancakova, Veronika"]
[Black "Jakubse, Tamae Severina"]
[Result "1/2-1/2"]
[TimeControl "20min+5s/move"]
[WhiteElo "1433"]
[BlackElo "1223"]

1. d4 {[%clk 00:20:08]} {[%emt 00:00:01]} Nf6 {[%clk 00:20:08]} {[%emt
00:00:02]} 2. c4 {[%clk 00:20:12]} {[%emt 00:00:01]} g6 {[%clk 00:20:11]}
{[%emt 00:00:02]} 3. Nc3 {[%clk 00:20:16]} {[%emt 00:00:01]} d5 {[%clk
00:20:15]} {[%emt 00:00:01]} 4. cxd5 {[%clk 00:20:19]} {[%emt 00:00:03]} Nxd5
{[%clk 00:20:18]} {[%emt 00:00:01]} 5. e4 {[%clk 00:20:23]} {[%emt 00:00:02]}
Nxc3 {[%clk 00:20:20]} {[%emt 00:00:02]} 6. bxc3 {[%clk 00:20:27]} {[%emt
00:00:02]} Bg7 {[%clk 00:20:23]} {[%emt 00:00:01]} 7. Bc4 {[%clk 00:20:30]}
{[%emt 00:00:02]} c5 {[%clk 00:20:26]} {[%emt 00:00:02]} 8. Ne2 {[%clk
00:20:34]} {[%emt 00:00:02]} Nc6 {[%clk 00:20:27]} {[%emt 00:00:04]} 9. Be3
{[%clk 00:20:37]} {[%emt 00:00:02]} O-O {[%clk 00:20:28]} {[%emt 00:00:04]} 10.
O-O {[%clk 00:20:33]} {[%emt 00:00:08]} Bg4 {[%clk 00:20:28]} {[%emt 00:00:04]}
11. f3 {[%clk 00:20:33]} {[%emt 00:00:07]} Na5 {[%clk 00:20:27]} {[%emt
00:00:05]} 12. Bxf7+ {[%clk 00:20:27]} {[%emt 00:00:11]} Rxf7 {[%clk 00:20:30]}
{[%emt 00:00:02]} 13. fxg4 {[%clk 00:20:30]} {[%emt 00:00:02]} Rxf1+ {[%clk
00:20:12]} {[%emt 00:00:23]} 14. Kxf1 {[%clk 00:19:58]} {[%emt 00:00:38]} Qd6
{[%clk 00:19:26]} {[%emt 00:00:50]} 15. Kg1 {[%clk 00:17:12]} {[%emt 00:02:51]}
cxd4 {[%clk 00:17:03]} {[%emt 00:02:29]} 16. cxd4 {[%clk 00:16:05]} {[%emt
00:01:12]} Rd8 {[%clk 00:15:52]} {[%emt 00:01:15]} 17. Qa4 {[%clk 00:12:43]}
{[%emt 00:03:27]} Qb6 {[%clk 00:14:10]} {[%emt 00:01:44]} 18. Rf1 {[%clk
00:08:18]} {[%emt 00:04:33]} Qa6 {[%clk 00:10:07]} {[%emt 00:04:07]} 19. Qc2
{[%clk 00:06:04]} {[%emt 00:02:20]} Nc4 {[%clk 00:08:09]} {[%emt 00:02:03]} 20.
Qb3 {[%clk 00:03:12]} {[%emt 00:02:58]} Kh8 {[%clk 00:07:32]} {[%emt 00:00:40]}
21. Rf7 {[%clk 00:01:25]} {[%emt 00:01:53]} Nd6 {[%clk 00:06:05]} {[%emt
00:01:33]} 22. Nf4 {[%clk 00:00:08]} {[%emt 00:01:22]} Nxf7 {[%clk 00:04:39]}
{[%emt 00:01:30]} 23. Qxf7 {[%emt 00:00:03]} Qb6 {[%clk 00:04:04]} {[%emt
00:00:39]} 24. Ne6 {[%clk 00:00:07]} {[%emt 00:00:11]} Qb1+ {[%clk 00:03:57]}
{[%emt 00:00:10]} 25. Kf2 {[%clk 00:00:10]} {[%emt 00:00:02]} Qxa2+ {[%clk
00:03:27]} {[%emt 00:00:35]} 26. Kf3 {[%clk 00:00:15]} {[%emt 00:00:48]} Rg8
{[%clk 00:04:17]} {[%emt 00:00:11]} 27. Qxe7 {[%clk 00:00:07]} {[%emt
00:00:13]} Qb1 {[%clk 00:03:20]} {[%emt 00:00:59]} 28. Nxg7 {[%clk 00:00:06]}
{[%emt 00:00:10]} Rxg7 {[%clk 00:03:22]} {[%emt 00:00:02]} 29. Qf8+ {[%clk
00:00:11]} {[%emt 00:00:02]} Rg8 {[%clk 00:03:25]} {[%emt 00:00:02]} 30. Qf6+
{[%clk 00:00:14]} {[%emt 00:00:01]} 1/2-1/2

[Event "MCR rapid mládeže 2023 U16"]
[Site "Harachov, Czech Republic"]
[Date "2023.09.09"]
[Round "6.24"]
[White "Janouskova, Eliska"]
[Black "Nova, Anezka"]
[Result "1/2-1/2"]
[TimeControl "20min+5s/move"]
[WhiteElo "1333"]
[BlackElo "1382"]

1. e4 {[%clk 00:20:28]} e6 {[%clk 00:20:29]} {[%emt 00:00:02]} 2. Nf3 {[%clk
00:20:30]} {[%emt 00:00:03]} d5 {[%clk 00:20:33]} {[%emt 00:00:01]} 3. Nc3
{[%clk 00:20:33]} {[%emt 00:00:02]} c5 {[%clk 00:19:55]} {[%emt 00:00:42]} 4.
d4 {[%clk 00:19:13]} {[%emt 00:01:25]} Nc6 {[%clk 00:19:12]} {[%emt 00:00:48]}
5. dxc5 {[%clk 00:18:28]} {[%emt 00:00:50]} Nf6 {[%clk 00:16:35]} {[%emt
00:02:42]} 6. Bg5 {[%clk 00:16:10]} {[%emt 00:02:22]} Be7 {[%clk 00:16:04]}
{[%emt 00:00:37]} 7. Bd3 {[%clk 00:13:48]} {[%emt 00:02:26]} dxe4 {[%clk
00:14:04]} {[%emt 00:02:06]} 8. Nxe4 {[%clk 00:13:26]} {[%emt 00:00:26]} Nxe4
{[%clk 00:13:59]} {[%emt 00:00:11]} 9. Bxe7 {[%clk 00:13:28]} {[%emt 00:00:02]}
Qxe7 {[%clk 00:14:00]} {[%emt 00:00:05]} 10. Bxe4 {[%clk 00:13:21]} {[%emt
00:00:11]} Qxc5 {[%clk 00:13:44]} {[%emt 00:00:21]} 11. O-O {[%clk 00:12:45]}
{[%emt 00:00:41]} O-O {[%clk 00:13:25]} {[%emt 00:00:24]} 12. Qe2 {[%clk
00:11:53]} {[%emt 00:00:56]} Nd4 {[%clk 00:10:43]} {[%emt 00:02:46]} 13. Nxd4
{[%clk 00:11:46]} {[%emt 00:00:14]} Qxd4 {[%clk 00:10:47]} {[%emt 00:00:02]} 14.
c3 {[%clk 00:11:31]} {[%emt 00:00:20]} Qb6 {[%clk 00:09:51]} {[%emt 00:00:58]}
15. Rad1 {[%clk 00:11:15]} {[%emt 00:00:23]} Re8 {[%clk 00:09:16]} {[%emt
00:00:40]} 16. Rfe1 {[%clk 00:10:47]} {[%emt 00:00:32]} Qc7 {[%clk 00:08:10]}
{[%emt 00:01:12]} 17. Qe3 {[%clk 00:09:54]} {[%emt 00:00:57]} e5 {[%clk
00:06:19]} {[%emt 00:01:56]} 18. h3 {[%clk 00:08:48]} {[%emt 00:01:10]} Be6
{[%clk 00:04:36]} {[%emt 00:01:49]} 19. b3 {[%clk 00:08:05]} {[%emt 00:00:47]}
f6 {[%clk 00:04:24]} {[%emt 00:00:18]} 20. c4 {[%clk 00:08:05]} {[%emt
00:00:05]} 1/2-1/2

[Event "MCR rapid mládeže 2023 U16"]
[Site "Harachov, Czech Republic"]
[Date "2023.09.09"]
[Round "6.25"]
[White "Strazhnyk, Viktoriia"]
[Black "Kusova, Nikola"]
[Result "0-1"]
[TimeControl "20min+5s/move"]
[WhiteElo "1392"]
[BlackElo "1247"]

1. e4 {[%clk 00:20:07]} {[%emt 00:00:03]} e5 {[%clk 00:20:07]} {[%emt
00:00:04]} 2. Nf3 {[%clk 00:20:04]} {[%emt 00:00:09]} Nf6 {[%clk 00:20:09]}
{[%emt 00:00:02]} 3. Nxe5 {[%clk 00:20:00]} {[%emt 00:00:08]} d6 {[%clk
00:20:13]} {[%emt 00:00:02]} 4. Nf3 {[%clk 00:19:58]} {[%emt 00:00:06]} Nxe4
{[%clk 00:20:15]} {[%emt 00:00:03]} 5. Qe2 {[%clk 00:20:00]} {[%emt 00:00:04]}
Qe7 {[%clk 00:20:18]} {[%emt 00:00:02]} 6. d3 {[%clk 00:19:56]} {[%emt
00:00:09]} Nf6 {[%clk 00:20:20]} {[%emt 00:00:02]} 7. Bg5 {[%clk 00:19:50]}
{[%emt 00:00:11]} Qxe2+ {[%clk 00:19:44]} {[%emt 00:00:41]} 8. Bxe2 {[%clk
00:19:53]} {[%emt 00:00:03]} Be7 {[%clk 00:19:48]} {[%emt 00:00:01]} 9. Nc3
{[%clk 00:19:50]} {[%emt 00:00:08]} Bd7 {[%clk 00:18:33]} {[%emt 00:01:20]} 10.
O-O-O {[%clk 00:19:33]} {[%emt 00:00:21]} O-O {[%clk 00:18:06]} {[%emt
00:00:32]} 11. Bxf6 {[%clk 00:19:28]} {[%emt 00:00:11]} Bxf6 {[%clk 00:18:10]}
{[%emt 00:00:01]} 12. Nd5 {[%clk 00:19:32]} {[%emt 00:00:02]} Bd8 {[%clk
00:18:02]} {[%emt 00:00:12]} 13. h4 {[%clk 00:19:22]} {[%emt 00:00:15]} Be6
{[%clk 00:17:55]} {[%emt 00:00:12]} 14. Nc3 {[%clk 00:19:22]} {[%emt 00:00:05]}
a5 {[%clk 00:17:20]} {[%emt 00:00:41]} 15. h5 {[%clk 00:19:19]} {[%emt
00:00:08]} c6 {[%clk 00:16:24]} {[%emt 00:01:00]} 16. h6 {[%clk 00:19:15]}
{[%emt 00:00:09]} g6 {[%clk 00:16:26]} {[%emt 00:00:03]} 17. d4 {[%clk
00:19:03]} {[%emt 00:00:17]} d5 {[%clk 00:15:10]} {[%emt 00:01:21]} 18. Ne5
{[%clk 00:18:30]} {[%emt 00:00:37]} Nd7 {[%clk 00:13:35]} {[%emt 00:01:40]} 19.
Nxd7 {[%clk 00:18:25]} {[%emt 00:00:11]} Bxd7 {[%clk 00:13:38]} {[%emt
00:00:02]} 20. Bd3 {[%clk 00:18:07]} {[%emt 00:00:21]} b5 {[%clk 00:13:16]}
{[%emt 00:00:29]} 21. a3 {[%clk 00:17:56]} {[%emt 00:00:16]} b4 {[%clk
00:13:11]} {[%emt 00:00:10]} 22. Na4 {[%clk 00:17:27]} {[%emt 00:00:34]} bxa3
{[%clk 00:12:13]} {[%emt 00:01:04]} 23. bxa3 {[%clk 00:17:29]} {[%emt
00:00:02]} Rb8 {[%clk 00:11:31]} {[%emt 00:00:47]} 24. g3 {[%clk 00:17:24]}
{[%emt 00:00:10]} Bf6 {[%clk 00:09:42]} {[%emt 00:01:53]} 25. Nc5 {[%clk
00:16:57]} {[%emt 00:00:31]} Bg4 {[%clk 00:09:29]} {[%emt 00:00:19]} 26. Rde1
{[%clk 00:16:33]} {[%emt 00:00:29]} Bxd4 {[%clk 00:08:54]} {[%emt 00:00:41]} 27.
Na6 {[%clk 00:16:14]} {[%emt 00:00:23]} Rb7 {[%clk 00:08:21]} {[%emt 00:00:39]}
28. Rh4 {[%clk 00:16:02]} {[%emt 00:00:17]} Bxf2 {[%clk 00:07:31]} {[%emt
00:00:56]} 29. Re5 {[%clk 00:14:55]} {[%emt 00:01:11]} Bxg3 {[%clk 00:07:10]}
{[%emt 00:00:27]} 30. Rxg4 {[%clk 00:14:58]} {[%emt 00:00:01]} Bxe5 {[%clk
00:07:13]} {[%emt 00:00:02]} 31. Ra4 {[%clk 00:14:58]} {[%emt 00:00:05]} Bc3
{[%clk 00:06:55]} {[%emt 00:00:23]} 32. Nc5 {[%clk 00:14:54]} {[%emt 00:00:09]}
Re8 {[%clk 00:06:39]} {[%emt 00:00:21]} 33. Be4 {[%clk 00:13:55]} {[%emt
00:01:05]} Rb5 {[%clk 00:05:57]} {[%emt 00:00:46]} 34. Nd7 {[%clk 00:13:39]}
{[%emt 00:00:21]} Rxe4 {[%clk 00:05:34]} {[%emt 00:00:28]} 0-1

[Event "MCR rapid mládeže 2023 U16"]
[Site "Harachov, Czech Republic"]
[Date "2023.09.09"]
[Round "6.26"]
[White "Kratka, Tereza"]
[Black "Stepankova, Linda"]
[Result "1-0"]
[TimeControl "20min+5s/move"]
[WhiteElo "1147"]
[BlackElo "1124"]

1. c4 {[%clk 00:20:07]} {[%emt 00:00:02]} e5 {[%clk 00:20:06]} {[%emt
00:00:09]} 2. Nc3 {[%clk 00:20:11]} {[%emt 00:00:02]} Nf6 {[%clk 00:20:08]}
{[%emt 00:00:03]} 3. Nf3 {[%clk 00:20:14]} {[%emt 00:00:01]} Nc6 {[%clk
00:19:42]} {[%emt 00:00:32]} 4. g3 {[%clk 00:20:15]} {[%emt 00:00:03]} d5
{[%clk 00:18:04]} {[%emt 00:01:44]} 5. cxd5 {[%clk 00:20:14]} {[%emt 00:00:06]}
Nxd5 {[%clk 00:18:06]} {[%emt 00:00:03]} 6. Bg2 {[%clk 00:20:18]} {[%emt
00:00:01]} Nxc3 {[%clk 00:18:05]} {[%emt 00:00:05]} 7. bxc3 {[%clk 00:20:22]}
{[%emt 00:00:01]} Bd6 {[%clk 00:17:22]} {[%emt 00:00:48]} 8. O-O {[%clk
00:20:18]} {[%emt 00:00:08]} O-O {[%clk 00:17:23]} {[%emt 00:00:04]} 9. d3
{[%clk 00:20:22]} {[%emt 00:00:02]} h6 {[%clk 00:16:11]} {[%emt 00:01:17]} 10.
Bb2 {[%clk 00:20:07]} {[%emt 00:00:19]} Be6 {[%clk 00:15:07]} {[%emt 00:01:09]}
11. Qd2 {[%clk 00:19:58]} {[%emt 00:00:13]} Qd7 {[%clk 00:15:01]} {[%emt
00:00:12]} 12. c4 {[%clk 00:20:01]} {[%emt 00:00:02]} Bh3 {[%clk 00:12:39]}
{[%emt 00:02:26]} 13. Qe3 {[%clk 00:19:20]} {[%emt 00:00:46]} Bxg2 {[%clk
00:12:34]} {[%emt 00:00:10]} 14. Kxg2 {[%clk 00:19:24]} {[%emt 00:00:01]} Qe7
{[%clk 00:11:43]} {[%emt 00:00:56]} 15. Rab1 {[%clk 00:18:54]} {[%emt
00:00:35]} Rab8 {[%clk 00:10:44]} {[%emt 00:01:04]} 16. Rfc1 {[%clk 00:17:50]}
{[%emt 00:01:09]} Bc5 {[%clk 00:06:24]} {[%emt 00:04:26]} 17. Qd2 {[%clk
00:17:06]} {[%emt 00:00:48]} Rfd8 {[%clk 00:05:29]} {[%emt 00:01:00]} 18. Qc3
{[%clk 00:16:09]} {[%emt 00:01:01]} Bd4 {[%clk 00:04:04]} {[%emt 00:01:32]} 19.
Nxd4 {[%clk 00:15:40]} {[%emt 00:00:34]} exd4 {[%clk 00:04:00]} {[%emt
00:00:08]} 20. Qd2 {[%clk 00:15:17]} {[%emt 00:00:28]} Qe6 {[%clk 00:02:13]}
{[%emt 00:01:53]} 21. Re1 {[%clk 00:14:51]} {[%emt 00:00:30]} Qg6 {[%clk
00:01:37]} {[%emt 00:00:41]} 22. e3 {[%clk 00:14:25]} {[%emt 00:00:31]} dxe3
{[%clk 00:01:31]} {[%emt 00:00:12]} 23. Rxe3 {[%clk 00:14:29]} {[%emt
00:00:01]} Nd4 {[%clk 00:01:03]} {[%emt 00:00:33]} 24. Bxd4 {[%clk 00:13:40]}
{[%emt 00:00:53]} Rxd4 {[%clk 00:01:06]} {[%emt 00:00:02]} 25. Rb3 {[%clk
00:13:25]} {[%emt 00:00:20]} b6 {[%clk 00:00:51]} {[%emt 00:00:20]} 26. Re7
{[%clk 00:13:13]} {[%emt 00:00:15]} Qc6+ {[%clk 00:00:38]} {[%emt 00:00:19]} 27.
Kg1 {[%clk 00:12:39]} {[%emt 00:00:40]} Rbd8 {[%clk 00:00:35]} {[%emt
00:00:08]} 28. Rc3 {[%clk 00:11:51]} {[%emt 00:00:53]} Qd6 {[%clk 00:00:31]}
{[%emt 00:00:09]} 29. Re3 {[%clk 00:11:47]} {[%emt 00:00:07]} c5 {[%clk
00:00:34]} {[%emt 00:00:05]} 30. Qe2 {[%clk 00:11:09]} {[%emt 00:00:42]} Kf8
{[%clk 00:00:25]} {[%emt 00:00:15]} 31. Qc2 {[%clk 00:10:10]} {[%emt 00:01:02]}
Qc7 {[%clk 00:00:10]} {[%emt 00:00:21]} 32. Qb1 {[%clk 00:09:03]} {[%emt
00:01:10]} Qd7 {[%clk 00:00:07]} {[%emt 00:00:11]} 33. Qc2 {[%clk 00:08:54]}
{[%emt 00:00:13]} Qc7 {[%clk 00:00:10]} {[%emt 00:00:02]} 34. Kg2 {[%clk
00:08:48]} {[%emt 00:00:11]} Qc6+ {[%clk 00:00:14]} {[%emt 00:00:02]} 35. f3
{[%clk 00:08:44]} {[%emt 00:00:08]} Qc7 {[%clk 00:00:13]} {[%emt 00:00:07]} 36.
Re4 {[%clk 00:08:31]} {[%emt 00:00:17]} Qd7 {[%clk 00:00:12]} {[%emt 00:00:07]}
37. Re3 {[%clk 00:07:49]} {[%emt 00:00:46]} Re8 {[%clk 00:00:12]} {[%emt
00:00:06]} 38. Rxe8+ {[%clk 00:07:45]} {[%emt 00:00:08]} Qxe8 {[%clk 00:00:15]}
{[%emt 00:00:02]} 39. Ra3 {[%clk 00:07:24]} {[%emt 00:00:26]} Qd7 {[%clk
00:00:16]} {[%emt 00:00:04]} 40. Kf2 {[%clk 00:07:11]} {[%emt 00:00:18]} Qe8
{[%clk 00:00:14]} {[%emt 00:00:07]} 41. Rxa7 {[%clk 00:07:03]} {[%emt
00:00:13]} Qb8 {[%clk 00:00:13]} {[%emt 00:00:07]} 42. Ra3 {[%clk 00:06:53]}
{[%emt 00:00:14]} Qd6 {[%clk 00:00:15]} {[%emt 00:00:03]} 43. Rb3 {[%clk
00:06:39]} {[%emt 00:00:18]} Ke7 {[%clk 00:00:16]} {[%emt 00:00:05]} 44. Qb1
{[%clk 00:06:24]} {[%emt 00:00:20]} Kf8 {[%clk 00:00:11]} {[%emt 00:00:10]} 45.
Rxb6 {[%clk 00:06:15]} {[%emt 00:00:14]} Qe5 {[%clk 00:00:09]} {[%emt
00:00:07]} 46. Rb8+ {[%clk 00:06:00]} {[%emt 00:00:19]} Ke7 {[%clk 00:00:09]}
{[%emt 00:00:05]} 47. Qb7+ {[%clk 00:05:59]} {[%emt 00:00:06]} Rd7 {[%clk
00:00:11]} {[%emt 00:00:03]} 48. Qb1 {[%clk 00:05:42]} {[%emt 00:00:20]} Qd4+
{[%clk 00:00:13]} {[%emt 00:00:05]} 49. Kg2 {[%clk 00:05:30]} {[%emt 00:00:16]}
Qxd3 {[%clk 00:00:15]} {[%emt 00:00:05]} 50. Qxd3 {[%clk 00:05:29]} {[%emt
00:00:06]} Rxd3 {[%clk 00:00:18]} {[%emt 00:00:02]} 51. Rb7+ {[%clk 00:05:32]}
{[%emt 00:00:02]} Ke6 {[%clk 00:00:20]} {[%emt 00:00:03]} 52. Rc7 {[%clk
00:05:26]} {[%emt 00:00:10]} Rd2+ {[%clk 00:00:20]} {[%emt 00:00:06]} 53. Kh3
{[%clk 00:05:29]} {[%emt 00:00:02]} Rxa2 {[%clk 00:00:23]} {[%emt 00:00:02]} 54.
Rxc5 {[%clk 00:05:32]} {[%emt 00:00:01]} Ra4 {[%clk 00:00:24]} {[%emt
00:00:04]} 55. Rc6+ {[%clk 00:05:30]} {[%emt 00:00:07]} Kd7 {[%clk 00:00:26]}
{[%emt 00:00:03]} 56. Rc5 {[%clk 00:05:03]} {[%emt 00:00:32]} Kd6 {[%clk
00:00:28]} {[%emt 00:00:04]} 57. Rd5+ {[%clk 00:05:06]} {[%emt 00:00:02]} Kc6
{[%clk 00:00:15]} {[%emt 00:00:18]} 58. Rf5 {[%clk 00:05:09]} {[%emt 00:00:02]}
Ra7 {[%clk 00:00:12]} {[%emt 00:00:07]} 59. Kg4 {[%clk 00:04:51]} {[%emt
00:00:21]} Kd6 {[%clk 00:00:09]} {[%emt 00:00:11]} 60. Kf4 {[%clk 00:04:10]}
{[%emt 00:00:44]} g6 {[%clk 00:00:10]} {[%emt 00:00:05]} 61. Rd5+ {[%clk
00:04:07]} {[%emt 00:00:08]} Kc6 {[%clk 00:00:12]} {[%emt 00:00:04]} 62. Ke5
{[%clk 00:03:50]} {[%emt 00:00:21]} Ra4 {[%clk 00:00:11]} {[%emt 00:00:06]} 63.
Kd4 {[%clk 00:03:24]} {[%emt 00:00:31]} Rb4 {[%clk 00:00:10]} {[%emt 00:00:07]}
64. Re5 {[%clk 00:03:04]} {[%emt 00:00:22]} Kd6 {[%clk 00:00:09]} {[%emt
00:00:08]} 65. Rb5 {[%clk 00:02:25]} {[%emt 00:00:44]} Ra4 {[%clk 00:00:09]}
{[%emt 00:00:06]} 66. Rb6+ {[%clk 00:02:11]} {[%emt 00:00:18]} Kd7 {[%clk
00:00:08]} {[%emt 00:00:07]} 67. Kd5 {[%clk 00:02:06]} {[%emt 00:00:09]} Ra5+
{[%emt 00:00:05]} 68. Rb5 {[%clk 00:02:01]} {[%emt 00:00:09]} Ra6 {[%clk
00:00:10]} {[%emt 00:00:05]} 69. Rb7+ {[%clk 00:01:55]} {[%emt 00:00:11]} Ke8
{[%clk 00:00:11]} {[%emt 00:00:04]} 70. c5 {[%clk 00:01:56]} {[%emt 00:00:03]}
Ra5 {[%clk 00:00:13]} {[%emt 00:00:03]} 71. Kd6 {[%clk 00:01:55]} {[%emt
00:00:06]} f5 {[%clk 00:00:12]} {[%emt 00:00:06]} 72. c6 {[%clk 00:01:29]}
{[%emt 00:00:31]} Ra2 {[%clk 00:00:13]} {[%emt 00:00:04]} 73. Kc7 {[%clk
00:01:24]} {[%emt 00:00:10]} Rxh2 {[%clk 00:00:14]} {[%emt 00:00:05]} 74. Kb8
{[%clk 00:01:26]} {[%emt 00:00:03]} Rc2 {[%clk 00:00:11]} {[%emt 00:00:07]} 75.
c7 {[%clk 00:01:30]} {[%emt 00:00:02]} g5 {[%clk 00:00:07]} {[%emt 00:00:08]}
76. c8=Q {[%clk 00:01:30]} {[%emt 00:00:05]} Rxc8+ {[%clk 00:00:11]} {[%emt
00:00:01]} 77. Kxc8 {[%clk 00:01:34]} {[%emt 00:00:02]} Kf8 {[%clk 00:00:11]}
{[%emt 00:00:05]} 78. Rd7 {[%clk 00:01:32]} {[%emt 00:00:07]} Kg8 {[%clk
00:00:08]} {[%emt 00:00:07]} 79. Kc7 {[%clk 00:01:36]} {[%emt 00:00:02]} Kf8
{[%clk 00:00:11]} {[%emt 00:00:01]} 80. Kd6 {[%clk 00:01:39]} {[%emt 00:00:02]}
Kg8 {[%clk 00:00:15]} {[%emt 00:00:01]} 81. Ke6 {[%clk 00:01:43]} {[%emt
00:00:02]} f4 {[%clk 00:00:15]} {[%emt 00:00:05]} 82. g4 {[%clk 00:01:45]}
{[%emt 00:00:03]} Kh8 {[%clk 00:00:13]} {[%emt 00:00:06]} 83. Kf6 {[%clk
00:01:42]} {[%emt 00:00:08]} Kg8 {[%clk 00:00:17]} {[%emt 00:00:02]} 84. Kg6
{[%clk 00:01:40]} {[%emt 00:00:07]} Kf8 {[%clk 00:00:20]} {[%emt 00:00:01]} 85.
Kxh6 {[%clk 00:01:44]} {[%emt 00:00:02]} Ke8 {[%clk 00:00:24]} 86. Ra7 {[%clk
00:01:47]} {[%emt 00:00:02]} Kd8 {[%clk 00:00:28]} {[%emt 00:00:02]} 87. Kxg5
{[%clk 00:01:50]} {[%emt 00:00:02]} 1-0